bitfinex-derivatives/quotes_ETHF0:USTF0_20260128
["timestamp","ask_amount","ask_price","bid_price","bid_amount"]
[1769583398680,3.03283456,3018.2,3017.2,3.63639171]
[1769583398882,3.5565784,3018.3,3017.2,3.63639171]
[1769583399184,3.03283461,3018.2,3017.2,3.63639171]
[1769583399376,3.5565784,3018.3,3017.2,3.63639171]
[1769583399576,3.03307432,3018.2,3017.2,3.63639171]
[1769583399777,3.5565784,3018.3,3017.2,3.63639171]
[1769583400079,3.5565784,3018.1,3017.2,3.63639171]
[1769583400279,3.5565784,3018.4,3017.6,3.63639171]
[1769583400481,3.03334049,3018.3,3017.6,3.63639171]
[1769583400681,3.03334049,3018.2,3017.6,3.63639171]
[1769583400882,3.5565784,3018.4,3017.6,3.63639171]
[1769583401086,3.03333247,3018.3,3017.6,3.63639171]
[1769583401378,3.03333247,3018.2,3017.6,3.63639171]
[1769583401583,3.5565784,3018.4,3017.6,3.63639171]
[1769583401782,3.03366766,3018.3,3017.6,3.63639171]
[1769583402082,6.59024606,3018.2,3017.4,3.63639171]
[1769583402283,3.5565784,3018.2,3017.4,3.63639171]
[1769583404178,3.5565784,3018.2,3017.1,5.08816237]
[1769583404382,3.03497152,3018.1,3017.4,3.63639171]
[1769583404691,3.03497152,3018.0,3017.4,3.63639171]
[1769583404880,3.5565784,3018.2,3017.4,3.63639171]
[1769583405082,3.03507968,3018.1,3017.4,3.63639171]
[1769583405281,3.03507968,3018.0,3017.4,3.63639171]
[1769583409987,3.7224384,3018.5,3017.4,3.63639171]
[1769583410590,3.5565784,3018.3,3017.4,3.63639171]
[1769583411494,3.748,3018.4,3017.4,3.63639171]
[1769583416805,7.20817552,3018.4,3017.4,3.63639171]
[1769583417103,3.46017552,3018.4,3017.4,3.63639171]
[1769583420907,3.772,3018.5,3017.6,3.6740414]
[1769583421709,3.46017552,3018.6,3017.6,3.6740414]
[1769583422104,6.44779659,3018.5,3017.6,3.6740414]
[1769583422303,2.98762107,3018.4,3017.6,3.6740414]
[1769583422503,3.46017552,3018.5,3017.6,3.6740414]
[1769583422703,2.98742774,3018.4,3017.6,3.6740414]
[1769583422902,3.46017552,3018.5,3017.6,3.6740414]
[1769583423104,2.98742774,3018.4,3017.6,3.6740414]
[1769583423404,3.46017552,3018.5,3017.6,3.6740414]
[1769583423603,2.98725519,3018.4,3017.6,3.6740414]
[1769583423810,3.46017552,3018.5,3017.6,3.6740414]
[1769583424008,2.98725519,3018.4,3017.6,3.6740414]
[1769583424209,3.46017552,3018.5,3017.6,3.6740414]
[1769583424408,2.98710027,3018.4,3017.6,3.6740414]
[1769583424711,3.46017552,3018.5,3017.6,3.6740414]
[1769583424908,2.98708992,3018.4,3017.6,3.6740414]
[1769583425108,3.46017552,3018.5,3017.6,3.6740414]
[1769583425309,2.98702442,3018.4,3017.6,3.6740414]
[1769583425509,3.46017552,3018.5,3017.6,3.6740414]
[1769583425714,2.9869358,3018.4,3017.6,3.6740414]
[1769583425911,3.46017552,3018.5,3017.6,3.6740414]
[1769583426105,2.98693436,3018.4,3017.6,3.6740414]
[1769583426410,3.46017552,3018.5,3017.6,3.6740414]
[1769583440926,3.46017552,3018.3,3017.6,3.6740414]
[1769583446136,3.46017552,3018.3,3017.2,7.01197995]
[1769583446137,3.43723765,3018.1,3017.2,0.61909172]
[1769583446334,3.43723765,3017.9,3017.2,4.16843946]
[1769583452841,3.43723765,3018.5,3017.2,4.16843946]
[1769583453028,2.98775972,3018.4,3017.2,4.16843946]
[1769583453235,3.43723765,3018.2,3017.2,4.16843946]
[1769583453428,6.42499737,3018.1,3017.2,4.16843946]
[1769583453722,2.98775972,3018.0,3017.2,4.16843946]
[1769583453922,3.43723765,3018.1,3017.2,4.16843946]
[1769583454127,6.42473028,3018.0,3017.2,4.16843946]
[1769583454329,3.43723765,3018.0,3017.2,4.16843946]
[1769583457241,3.43723765,3018.0,3017.2,0.61909172]
[1769583458640,3.70415164,3018.0,3017.2,0.61909172]
[1769583458939,3.43723765,3017.8,3016.9,0.00339995]
[1769583459238,3.43723765,3017.8,3016.9,3.55274769]
[1769583468646,3.43723765,3017.8,3016.9,0.00339995]
[1769583469234,3.43723765,3017.6,3016.9,0.00339995]
[1769583469439,3.43723765,3017.6,3016.5,3.54934774]
[1769583470346,3.43723765,3017.6,3016.5,3.55304226]
[1769583471545,3.43723765,3017.5,3016.5,3.55304226]
[1769583472045,3.43723765,3017.5,3016.6,3.54934774]
[1769583472745,3.43723765,3017.5,3016.8,3.54934774]
[1769583473244,3.43723765,3017.8,3016.8,3.54934774]
[1769583473445,6.42716395,3017.7,3016.8,3.54934774]
[1769583473646,3.43723765,3017.6,3016.8,3.54934774]
[1769583473947,3.43723765,3017.6,3016.7,1.45343887]
[1769583474245,3.43723765,3017.6,3016.6,3.54934774]
[1769583478044,3.43723765,3017.6,3016.7,1.45343887]
[1769583478245,3.43723765,3017.6,3016.8,3.3241802]
[1769583481648,3.21244946,3017.8,3016.8,3.3241802]
[1769583481940,3.21244946,3017.6,3016.8,3.3241802]
[1769583487246,3.00258012,3017.5,3016.8,3.3241802]
[1769583487446,3.21244946,3017.6,3016.8,3.3241802]
[1769583487645,3.00260474,3017.5,3016.8,3.3241802]
[1769583487848,3.21244946,3017.6,3016.8,3.3241802]
[1769583488145,3.00260479,3017.5,3016.8,3.3241802]
[1769583488346,3.21244946,3017.6,3016.8,3.3241802]
[1769583488539,3.00308113,3017.5,3016.8,3.3241802]
[1769583488736,3.21244946,3017.6,3016.8,3.3241802]
[1769583488940,3.00308113,3017.5,3016.8,3.3241802]
[1769583489149,3.21244946,3017.6,3016.8,3.3241802]
[1769583489345,3.00318313,3017.5,3016.8,3.3241802]
[1769583489542,3.21244946,3017.6,3016.8,3.3241802]
[1769583489746,3.00321195,3017.5,3016.8,4.77761907]
[1769583489945,3.21244946,3017.6,3016.8,4.77761907]
[1769583490243,3.00321195,3017.5,3016.8,4.77761907]
[1769583490445,3.21244946,3017.6,3016.6,4.77761907]
[1769583490649,3.21244946,3017.4,3016.6,4.77761907]
[1769583491153,3.21244946,3017.4,3016.7,3.3241802]
[1769583491652,3.21244946,3017.4,3016.5,3.32787472]
[1769583495247,3.00935046,3017.3,3016.5,3.32787472]
[1769583495546,3.21244946,3017.3,3016.5,3.32787472]
[1769583502856,3.21244946,3017.3,3016.6,4.77761907]
[1769583503558,3.21244946,3017.3,3016.7,3.3241802]
[1769583503762,3.21244946,3017.6,3016.7,3.3241802]
[1769583503960,6.22860413,3017.5,3016.7,3.3241802]
[1769583504159,3.01615467,3017.4,3016.7,3.3241802]
[1769583504359,3.01615467,3017.3,3016.7,3.3241802]
[1769583504656,3.21244946,3017.5,3016.7,3.3241802]
[1769583504857,3.01615993,3017.4,3016.7,3.3241802]
[1769583505059,3.01615993,3017.3,3016.7,3.3241802]
[1769583505252,3.21244946,3017.5,3016.7,3.3241802]
[1769583505452,3.01626154,3017.4,3016.7,3.3241802]
[1769583505649,3.01626154,3017.3,3016.7,3.3241802]
[1769583505851,3.08762823,3018.1,3017.3,3.10582211]
[1769583506052,6.10361707,3018.0,3017.3,3.10582211]
[1769583506252,3.01598884,3017.9,3017.3,3.10582211]
[1769583506457,3.01598884,3017.8,3017.3,3.10582211]
[1769583506655,3.08762823,3018.0,3017.3,3.10582211]
[1769583506860,3.0149314,3017.9,3017.3,3.10582211]
[1769583507059,3.0149314,3017.8,3017.3,3.10582211]
[1769583507356,3.08762823,3018.3,3017.3,3.10582211]
[1769583507561,3.01400344,3018.2,3017.3,3.10582211]
[1769583507757,3.01400344,3018.1,3017.3,3.10582211]
[1769583508059,3.01400344,3018.0,3017.3,3.10582211]
[1769583508360,3.08762823,3018.2,3017.3,3.10582211]
[1769583508558,3.0131351,3018.1,3017.3,3.10582211]
[1769583508760,3.0131351,3018.0,3017.3,3.10582211]
[1769583509062,3.08762823,3018.2,3017.3,3.10582211]
[1769583509260,3.01313366,3018.1,3017.3,3.10582211]
[1769583509455,3.01313366,3018.0,3017.3,3.10582211]
[1769583509662,3.08762823,3018.2,3017.3,3.10582211]
[1769583509862,3.01248411,3018.1,3017.3,3.10582211]
[1769583510051,3.01248411,3018.0,3017.3,3.10582211]
[1769583510255,3.08762823,3018.2,3017.3,3.10582211]
[1769583510461,3.01248411,3018.1,3017.3,3.10582211]
[1769583510664,3.01248411,3018.0,3017.3,3.10582211]
[1769583510863,3.08762823,3018.2,3017.3,3.10582211]
[1769583511063,3.08762823,3018.0,3017.3,3.10582211]
[1769583517059,3.08762823,3018.3,3017.3,3.10582211]
[1769583517763,3.08762823,3018.3,3017.5,3.10582211]
[1769583520466,3.08762823,3018.6,3017.7,3.10582211]
[1769583520773,3.08762823,3018.4,3017.7,3.10582211]
[1769583520970,3.01130374,3018.3,3017.7,3.10582211]
[1769583522463,3.08762823,3018.4,3017.7,3.10582211]
[1769583531674,3.08762823,3018.4,3017.5,3.10582211]
[1769583532379,6.10072305,3018.3,3017.5,3.10582211]
[1769583532583,3.08762823,3018.3,3017.5,3.10582211]
[1769583534481,6.10261516,3018.2,3017.5,3.10582211]
[1769583534683,2.75106764,3018.1,3017.5,3.10582211]
[1769583535183,2.75106764,3018.1,3017.0,2.92732668]
[1769583542790,2.75106764,3017.9,3016.9,2.92732668]
[1769583542988,2.75106764,3017.7,3016.9,2.92732668]
[1769583543188,5.7679493,3017.6,3016.9,2.92732668]
[1769583543385,2.75106764,3017.6,3016.7,2.92732668]
[1769583543588,2.75106764,3017.4,3016.5,0.00369452]
[1769583543792,2.75106764,3017.2,3016.5,0.00369452]
[1769583544096,2.75365909,3017.2,3016.3,2.92732668]
[1769583544888,2.75365909,3017.2,3016.3,2.93060593]
[1769583549098,2.75365909,3017.2,3016.3,0.00327925]
[1769583551499,2.75365909,3017.2,3016.1,2.92732668]
[1769583551905,2.75106764,3017.0,3015.9,2.92732668]
[1769583552298,2.75106764,3016.8,3015.9,2.92732668]
[1769583552606,2.75106764,3016.8,3015.9,2.93002527]
[1769583565017,2.71743042,3017.1,3015.9,2.93002527]
[1769583571634,5.75591866,3017.0,3015.9,2.93002527]
[1769583571836,2.71743042,3017.0,3015.9,2.93002527]
[1769583572332,3.04504106,3016.9,3015.9,2.93002527]
[1769583572533,2.71743042,3017.0,3015.9,2.93002527]
[1769583572833,3.04504106,3016.9,3015.9,2.93002527]
[1769583573131,2.71743042,3017.0,3015.9,2.93002527]
[1769583573325,3.04504106,3016.9,3015.9,2.93002527]
[1769583573631,2.71743042,3017.0,3015.9,2.93002527]
[1769583573833,3.04689921,3016.9,3015.9,2.93002527]
[1769583574032,2.71743042,3017.0,3015.9,2.93002527]
[1769583574232,3.04689921,3016.9,3015.9,2.93002527]
[1769583574433,3.04769861,3016.8,3015.9,2.93002527]
[1769583574633,2.71743042,3017.0,3015.9,2.93002527]
[1769583574932,3.04769861,3016.9,3015.9,2.93002527]
[1769583575134,0.00259145,3017.2,3015.9,2.93002527]
[1769583575333,3.04762573,3017.1,3015.9,2.93002527]
[1769583575532,3.04762573,3017.0,3015.9,2.93002527]
[1769583575834,3.04762573,3016.9,3016.3,2.73734581]
[1769583576029,0.00259145,3017.2,3016.3,2.73734581]
[1769583576229,3.04767562,3017.1,3016.3,2.73734581]
[1769583576436,2.72002187,3017.2,3016.3,2.73734581]
[1769583576437,3.04767562,3017.0,3016.3,2.73734581]
[1769583576735,3.04767562,3016.9,3016.3,2.73734581]
[1769583576931,2.72002187,3017.2,3016.3,2.73734581]
[1769583577139,3.0477016,3017.1,3016.3,2.73734581]
[1769583577435,3.0477016,3017.0,3016.3,2.73734581]
[1769583577638,3.0477016,3016.9,3016.3,2.73734581]
[1769583577933,2.72002187,3017.2,3016.3,2.73734581]
[1769583578135,3.04773233,3017.1,3016.3,2.73734581]
[1769583578334,3.04773233,3017.0,3016.3,2.73734581]
[1769583578534,2.72002187,3017.2,3016.3,2.73734581]
[1769583578733,3.04761806,3017.1,3016.3,2.73734581]
[1769583579037,0.00259145,3017.2,3016.3,2.73734581]
[1769583579434,9.19743042,3017.8,3016.7,2.73734581]
[1769583579738,5.76454611,3017.7,3016.7,2.73734581]
[1769583579937,3.04711569,3017.6,3016.7,2.73734581]
[1769583580140,2.71743042,3017.7,3016.7,2.73734581]
[1769583580340,3.04681463,3017.6,3016.7,2.73734581]
[1769583580632,2.71974948,3017.6,3016.7,2.73734581]
[1769583587935,2.71743042,3017.4,3016.0,2.73734581]
[1769583588642,2.71743042,3017.2,3016.0,2.73734581]
[1769583590441,2.71743042,3017.0,3016.0,2.73734581]
[1769583593641,2.71743042,3017.0,3016.1,2.73734581]
[1769583599745,3.95329833,3017.3,3016.1,2.73734581]
[1769583599943,2.49951549,3017.1,3016.1,2.73734581]
[1769583600743,3.098,3017.5,3016.7,2.65066029]
[1769583601047,0.00231906,3017.6,3016.7,2.65066029]
[1769583602449,2.50183455,3017.6,3016.7,2.65066029]
[1769583603753,2.49951549,3017.2,3016.3,2.65066029]
[1769583609851,2.49951549,3017.5,3016.5,2.65066029]
[1769583610051,2.49951549,3017.5,3016.0,5.13010923]
[1769583610052,2.49951549,3017.5,3016.7,2.65066029]
[1769583612349,2.49951549,3017.2,3016.1,2.65066029]
[1769583614462,2.49951549,3017.2,3016.3,2.65066029]
[1769583617068,2.49951549,3017.0,3016.3,2.65066029]
[1769583619664,2.49951549,3017.4,3016.3,2.65066029]
[1769583620567,2.49951549,3017.4,3016.5,2.65066029]
[1769583620866,0.00231906,3017.6,3017.1,2.65066029]
[1769583622166,2.49951549,3018.0,3017.1,2.65066029]
[1769583622369,5.53839941,3017.9,3017.1,2.65066029]
[1769583622571,3.03888392,3017.8,3017.1,2.65066029]
[1769583623170,3.04307089,3017.8,3017.1,2.65066029]
[1769583623471,0.00418697,3017.8,3017.1,2.65066029]
[1769583626171,2.39529414,3017.8,3017.1,2.65066029]
[1769583627471,0.00418697,3017.8,3017.1,2.65066029]
[1769583633367,2.39529414,3017.8,3017.1,2.65066029]
[1769583634168,3.84907698,3017.8,3016.7,2.47023552]
[1769583635569,2.39110717,3017.7,3016.7,2.47023552]
[1769583636871,2.39110717,3017.5,3016.7,2.47023552]
[1769583640875,2.39110717,3017.7,3016.7,2.47023552]
[1769583641082,3.03952261,3017.6,3017.1,2.47023552]
[1769583641378,0.00418697,3017.8,3017.1,2.47023552]
[1769583641574,3.03945895,3017.7,3017.1,2.47023552]
[1769583641787,0.00418697,3017.8,3017.1,2.47023552]
[1769583641974,3.03945895,3017.7,3017.1,2.47023552]
[1769583642169,2.39529414,3017.8,3016.6,1.45378284]
[1769583642476,2.39110717,3017.6,3016.7,2.47023552]
[1769583643179,3.84489001,3017.6,3016.7,2.47023552]
[1769583643477,2.39110717,3017.5,3016.7,2.47023552]
[1769583651484,2.39110717,3017.7,3016.7,2.47023552]
[1769583651784,3.04241638,3017.6,3016.7,2.47023552]
[1769583652089,3.04241638,3017.5,3016.7,2.47023552]
[1769583657485,5.53805871,3017.5,3016.7,2.47023552]
[1769583657688,2.49564233,3017.5,3016.7,2.47023552]
[1769583659680,2.49564233,3017.5,3016.3,0.166]
[1769583659885,2.49564233,3017.3,3016.3,2.34495187]
[1769583660086,2.49564233,3017.1,3016.3,2.34495187]
[1769583661589,2.49564233,3016.9,3016.1,2.34495187]
[1769583661992,5.53842321,3016.8,3016.1,2.34495187]
[1769583662192,2.49564233,3016.8,3016.1,2.34495187]
[1769583664597,2.49564233,3016.8,3015.9,2.34765046]
[1769583666088,2.49564233,3016.8,3015.9,0.00269859]
[1769583666285,2.49564233,3016.6,3015.9,0.00269859]
[1769583666586,2.49564233,3016.6,3015.5,2.34495187]
[1769583667387,2.49564233,3016.6,3015.5,2.34890698]
[1769583669084,1.45308648,3016.9,3015.5,2.34890698]
[1769583669085,2.49564233,3016.4,3015.5,2.34890698]
[1769583671080,2.49564233,3016.4,3014.8,2.34495187]
[1769583671280,2.49564233,3016.2,3014.8,2.34495187]
[1769583672084,2.49564233,3016.2,3014.8,2.34770063]
[1769583672490,2.49564233,3016.0,3014.8,2.34770063]
[1769583672691,2.7613242,3016.0,3014.8,2.34770063]
[1769583676089,2.49564233,3016.0,3014.8,2.34770063]
[1769583688001,2.49564233,3016.0,3014.8,0.00274876]
[1769583689002,2.49564233,3016.0,3014.8,2.45650909]
[1769583690206,2.37515377,3015.8,3014.8,2.45650909]
[1769583691003,2.37515377,3015.8,3013.7,2.45376033]
[1769583691004,2.37515377,3015.2,3013.7,2.45376033]
[1769583691304,2.37515377,3015.0,3013.7,2.45376033]
[1769583692006,2.37939423,3015.0,3013.7,2.45720894]
[1769583701211,3.04712088,3014.9,3013.7,2.45720894]
[1769583701413,2.37515377,3014.8,3013.7,2.45720894]
[1769583708116,2.37515377,3014.6,3013.7,2.45720894]
[1769583708315,2.37515377,3014.6,3013.7,0.00344861]
[1769583709119,2.37515377,3014.4,3013.7,0.00344861]
[1769583710613,2.37515377,3014.4,3012.7,1.45308648]
[1769583710614,2.37515377,3014.4,3012.8,2.45376033]
[1769583710921,2.37515377,3014.2,3012.8,2.45376033]
[1769583711421,2.37515377,3014.1,3012.8,2.45376033]
[1769583711717,2.37515377,3014.1,3012.8,2.45654045]
[1769583712421,2.37515377,3014.0,3012.8,2.45654045]
[1769583715622,3.83221762,3014.0,3012.8,3.9136043]
[1769583715919,2.38263215,3013.9,3012.9,2.27291839]
[1769583716925,2.38263215,3013.9,3013.0,1.45706385]
[1769583717221,2.38263215,3013.9,3013.1,2.27291839]
[1769583719517,1.978,3014.1,3013.1,2.27291839]
[1769583719721,2.38263215,3014.3,3013.9,1.45706385]
[1769583720119,2.38263215,3014.3,3013.7,1.45706385]
[1769583720320,2.38263215,3014.3,3013.7,3.72998224]
[1769583720823,2.38263215,3014.3,3013.7,2.27291839]
[1769583721020,3.05043866,3014.2,3013.7,2.27291839]
[1769583721222,2.38263215,3014.3,3013.7,2.27291839]
[1769583721526,5.43315276,3014.2,3013.5,2.27291839]
[1769583721728,2.38263215,3014.2,3013.5,2.27291839]
[1769583722026,2.38263215,3014.6,3013.8,2.27291839]
[1769583722227,5.42805362,3014.5,3013.8,2.27291839]
[1769583722526,5.42805362,3014.4,3013.8,2.27291839]
[1769583722723,5.42805362,3014.3,3013.8,2.27291839]
[1769583722923,2.38263215,3014.3,3013.8,2.27291839]
[1769583725424,2.38263215,3014.7,3014.1,1.45706385]
[1769583725629,0.00424046,3015.0,3014.4,2.27291839]
[1769583725630,2.38263215,3014.9,3014.4,2.27291839]
[1769583725925,0.00424046,3015.0,3014.4,2.27291839]
[1769583726622,0.00424046,3015.0,3014.4,2.26769839]
[1769583726822,2.38687261,3015.0,3014.4,2.26769839]
[1769583727227,2.38687261,3015.0,3014.1,1.45706385]
[1769583727524,2.38687261,3015.0,3013.9,1.45706385]
[1769583728027,2.38687261,3015.0,3014.1,1.45706385]
[1769583728715,2.38687261,3015.0,3014.2,2.27291839]
[1769583732834,2.38263215,3014.9,3014.2,2.27291839]
[1769583733133,2.38263215,3014.9,3013.8,2.27291839]
[1769583733833,2.38263215,3014.9,3013.9,1.45706385]
[1769583734034,2.38263215,3014.9,3014.0,2.27291839]
[1769583734730,0.00424046,3015.0,3014.0,2.27291839]
[1769583735030,2.38263215,3015.7,3015.0,2.27291839]
[1769583735234,3.869,3015.8,3015.2,2.27291839]
[1769583735433,3.869,3015.8,3015.3,1.45706385]
[1769583735633,2.38263215,3016.2,3015.4,2.27291839]
[1769583736233,2.38560271,3016.2,3015.4,2.27545682]
[1769583736537,2.38560271,3016.2,3015.4,0.00253843]
[1769583736929,2.38560271,3016.2,3015.1,3.72998224]
[1769583736930,2.38263215,3015.6,3014.6,2.27291839]
[1769583737936,2.38263215,3015.6,3014.7,3.72998224]
[1769583738833,0.00297056,3016.2,3015.1,1.45706385]
[1769583739138,2.38263215,3016.1,3015.3,3.72998224]
[1769583739331,2.38263215,3016.1,3015.3,2.27291839]
[1769583740233,2.38263215,3016.1,3015.0,3.72998224]
[1769583740434,2.38263215,3016.1,3015.0,2.27291839]
[1769583742542,2.38263215,3016.1,3015.1,1.45706385]
[1769583742842,2.38263215,3016.1,3015.2,2.27291839]
[1769583743746,0.00297056,3016.2,3015.5,3.72998224]
[1769583744142,0.00297056,3016.2,3015.5,2.27291839]
[1769583744644,0.00297056,3016.2,3015.5,3.72998224]
[1769583744846,0.00297056,3016.2,3015.6,2.23145009]
[1769583745141,2.35719308,3016.7,3015.8,2.28806211]
[1769583745350,2.29946196,3017.0,3016.0,2.28806211]
[1769583745535,2.5646842,3017.0,3016.0,2.28806211]
[1769583745739,2.29946196,3017.0,3016.0,2.28806211]
[1769583746446,2.30353791,3017.0,3016.0,2.28806211]
[1769583753841,0.00407595,3017.0,3016.0,2.28806211]
[1769583755951,2.30353791,3017.0,3016.0,2.28806211]
[1769583765558,2.29946196,3016.8,3015.4,2.28806211]
[1769583770363,2.99907435,3016.7,3015.4,2.28806211]
[1769583770560,2.29946196,3016.8,3015.4,2.28806211]
[1769583770863,5.29853684,3016.7,3015.4,2.28806211]
[1769583771067,2.29946196,3016.7,3015.4,2.28806211]
[1769583771470,2.29946196,3016.5,3015.4,2.28806211]
[1769583775662,2.29946196,3016.5,3015.5,2.4552535]
[1769583785672,2.35933399,3016.2,3015.1,10.92099631]
[1769583785880,2.35933399,3015.8,3014.7,4.96408923]
[1769583786070,2.35933399,3015.6,3014.6,7.42212349]
[1769583786273,2.35933399,3015.6,3014.6,2.45803426]
[1769583792993,2.35933399,3015.6,3014.6,0.00278076]
[1769583794188,2.35933399,3015.6,3014.6,2.45803426]
[1769583796992,2.35933399,3015.6,3014.6,0.00278076]
[1769583797187,0.16605,3015.7,3014.6,0.00278076]
[1769583797188,2.35933399,3015.4,3014.6,0.00278076]
[1769583800697,2.35933399,3015.4,3014.0,2.4552535]
[1769583801005,2.35933399,3015.2,3014.0,2.4552535]
[1769583801898,2.35933399,3015.2,3014.0,2.45789045]
[1769583804699,2.33201012,3015.1,3014.0,2.45789045]
[1769583805706,2.33201012,3015.1,3014.0,0.00263695]
[1769583806206,2.4516713,3014.9,3014.0,0.00263695]
[1769583811006,2.4516713,3014.9,3014.0,2.24241958]
[1769583811906,2.4516713,3015.1,3014.1,2.23978263]
[1769583815208,3.09270347,3015.0,3014.1,2.23978263]
[1769583815404,2.4516713,3015.1,3014.1,2.23978263]
[1769583815604,3.09270473,3015.0,3014.1,2.23978263]
[1769583815804,2.4516713,3015.1,3014.1,2.23978263]
[1769583816005,3.09270473,3015.0,3014.1,2.23978263]
[1769583816214,2.4516713,3015.1,3014.1,2.23978263]
[1769583816406,5.54519245,3015.0,3014.1,2.23978263]
[1769583816605,2.4516713,3015.0,3014.1,2.23978263]
[1769583817211,3.09399471,3014.9,3014.1,2.23978263]
[1769583817414,2.4516713,3014.9,3014.1,2.23978263]
[1769583818314,2.4516713,3014.9,3014.0,0.00263695]
[1769583818613,2.4516713,3014.9,3014.0,2.24241958]
[1769583819515,5.5529656,3014.8,3014.0,2.24241958]
[1769583819814,2.4516713,3014.7,3014.0,0.00263695]
[1769583820612,2.4516713,3014.7,3014.0,2.24241958]
[1769583820811,0.00321278,3014.8,3014.0,2.24241958]
[1769583824315,0.00321278,3014.8,3014.1,2.23978263]
[1769583824517,2.4516713,3015.4,3014.1,2.23978263]
[1769583824715,2.4516713,3015.2,3014.1,2.23978263]
[1769583824920,5.55493061,3015.1,3014.1,2.23978263]
[1769583825122,3.10325931,3015.0,3014.1,2.23978263]
[1769583825514,3.10711816,3015.0,3014.1,2.23978263]
[1769583825724,0.00385885,3015.0,3014.1,2.23978263]
[1769583831320,2.45553015,3015.0,3014.1,2.23978263]
[1769583831628,5.55657006,3014.9,3014.1,2.23978263]
[1769583831925,2.4516713,3014.9,3014.1,2.23978263]
[1769583836942,2.4516713,3014.9,3014.0,0.00263695]
[1769583837436,2.4025693,3014.7,3014.0,0.00263695]
[1769583837636,3.85898822,3014.6,3014.0,0.00263695]
[1769583838039,2.4025693,3014.6,3014.0,0.00263695]
[1769583838638,2.4025693,3014.6,3014.0,2.40927248]
[1769583839032,2.4025693,3014.9,3014.0,2.40927248]
[1769583839338,0.00385885,3015.0,3014.3,2.40663553]
[1769583839540,3.11058595,3014.9,3014.3,2.40663553]
[1769583839735,0.00385885,3015.0,3014.3,2.40663553]
[1769583840038,3.11058565,3014.9,3014.3,2.40663553]
[1769583840339,0.00385885,3015.0,3014.3,2.40663553]
[1769583840539,3.11135774,3014.9,3014.3,2.40663553]
[1769583840728,0.00385885,3015.0,3014.3,2.40663553]
[1769583840931,3.11135908,3014.9,3014.3,2.40663553]
[1769583841128,0.00385885,3015.0,3014.3,2.40663553]
[1769583841337,3.11215954,3014.9,3014.3,2.40663553]
[1769583841538,0.00385885,3015.0,3014.3,2.40663553]
[1769583841737,3.11214658,3014.9,3014.3,2.40663553]
[1769583841937,0.00385885,3015.0,3014.3,2.40663553]
[1769583842237,3.10861264,3014.9,3014.3,2.40663553]
[1769583842434,2.4025693,3015.5,3014.4,2.40663553]
[1769583843433,2.40549111,3015.5,3014.4,2.40663553]
[1769583844337,3.85898822,3015.4,3014.4,2.40663553]
[1769583846342,2.4025693,3015.3,3014.4,2.40663553]
[1769583847043,3.85898822,3015.2,3014.4,2.40663553]
[1769583847844,2.4025693,3015.1,3014.4,2.40663553]
[1769583848544,2.4025693,3015.1,3014.1,2.40663553]
[1769583849343,1.45641892,3014.8,3014.1,2.40663553]
[1769583849543,3.85898822,3014.8,3014.1,2.40663553]
[1769583850643,2.4025693,3014.8,3014.1,2.40663553]
[1769583851446,2.4025693,3015.0,3014.1,2.40663553]
[1769583851639,2.4025693,3015.2,3014.1,2.40663553]
[1769583854350,3.09623752,3015.1,3014.1,2.40663553]
[1769583854544,5.49880682,3015.0,3014.1,2.40663553]
[1769583854849,3.09623752,3014.9,3014.1,2.40663553]
[1769583855042,2.4025693,3015.0,3014.1,2.40663553]
[1769583855243,3.09620181,3014.9,3014.1,2.40663553]
[1769583855443,2.4025693,3015.0,3014.1,2.40663553]
[1769583855644,3.09623085,3014.9,3014.1,2.40663553]
[1769583855846,2.4025693,3015.0,3014.1,2.40663553]
[1769583856149,3.09622951,3014.9,3014.1,2.40663553]
[1769583856348,2.4025693,3015.0,3014.1,2.40663553]
[1769583856549,3.0962212,3014.9,3014.1,2.40663553]
[1769583856750,2.4025693,3015.0,3014.1,2.40663553]
[1769583856950,3.09622474,3014.9,3014.1,2.40663553]
[1769583857150,2.4025693,3015.0,3014.1,2.40663553]
[1769583857451,3.09618236,3014.9,3014.1,2.40663553]
[1769583857649,2.4025693,3015.0,3014.1,2.40663553]
[1769583857844,3.09621132,3014.9,3014.1,2.40663553]
[1769583858044,2.4025693,3015.0,3014.1,2.40663553]
[1769583858251,3.09617369,3014.9,3014.1,2.40663553]
[1769583858452,2.4025693,3015.0,3014.1,2.40663553]
[1769583858645,3.09620218,3014.9,3014.1,2.40663553]
[1769583858841,2.4025693,3014.9,3014.1,2.40663553]
[1769583863959,2.4025693,3015.2,3014.1,2.40663553]
[1769583864153,2.4025693,3015.0,3014.1,2.40663553]
[1769583865557,3.10472346,3014.9,3014.1,2.40663553]
[1769583865758,2.4025693,3015.0,3014.1,2.40663553]
[1769583865954,3.10472346,3014.9,3014.1,2.40663553]
[1769583866155,2.4025693,3015.0,3014.2,1.5672668]
[1769583866350,3.10478453,3014.9,3014.2,1.5672668]
[1769583866552,2.4025693,3015.0,3014.2,1.5672668]
[1769583866758,3.10478538,3014.9,3014.2,1.5672668]
[1769583866955,2.4025693,3015.0,3014.2,1.5672668]
[1769583867153,3.10478411,3014.9,3014.2,1.5672668]
[1769583867354,2.4025693,3015.0,3014.2,1.5672668]
[1769583867553,3.10488175,3014.9,3014.2,1.5672668]
[1769583867754,2.4025693,3015.0,3014.2,1.5672668]
[1769583868055,3.10488175,3014.9,3014.2,1.5672668]
[1769583868256,2.4025693,3015.0,3014.2,1.5672668]
[1769583868457,3.10538903,3014.9,3014.2,1.5672668]
[1769583868660,2.4025693,3015.0,3014.2,1.5672668]
[1769583868861,4.94747212,3014.9,3014.2,1.5672668]
[1769583869064,1.84208351,3014.9,3014.2,1.5672668]
[1769583877183,1.84208351,3014.9,3014.1,1.45641892]
[1769583882569,1.84208351,3014.9,3014.0,1.21763366]
[1769583886371,1.84208351,3014.9,3014.0,0.00263695]
[1769583886778,1.84208351,3014.7,3014.0,0.00263695]
[1769583892780,2.00817351,3014.7,3014.0,0.00263695]
[1769583893375,0.00292181,3015.5,3014.3,1.45641892]
[1769583893570,3.11883179,3015.4,3014.3,3.44520563]
[1769583893775,3.11883179,3015.3,3014.3,1.98878671]
[1769583893976,3.11883179,3015.2,3014.3,1.98878671]
[1769583894182,3.11883179,3015.2,3014.1,3.44520563]
[1769583894382,3.11883179,3015.1,3014.1,3.44520563]
[1769583895182,3.11883179,3015.1,3014.1,1.98878671]
[1769583895383,1.37377722,3015.0,3014.1,1.98878671]
[1769583895693,1.37377722,3014.8,3014.0,0.00263695]
[1769583900683,1.37377722,3014.8,3014.0,1.35531429]
[1769583901185,1.37377722,3014.8,3014.0,0.00263695]
[1769583901684,1.37377722,3014.8,3013.4,1.35267734]
[1769583901879,1.37377722,3014.2,3013.1,1.35267734]
[1769583902081,1.37377722,3014.2,3012.6,1.35267734]
[1769583902286,1.37377722,3014.0,3012.6,1.35267734]
[1769583902683,1.37377722,3014.0,3012.6,1.35572617]
[1769583903986,3.10307483,3013.9,3012.6,1.35572617]
[1769583904290,1.37377722,3013.8,3012.6,1.35572617]
[1769583907983,1.37377722,3013.4,3011.9,4.96408923]
[1769583908190,1.37377722,3013.1,3012.0,1.35267734]
[1769583909098,1.376475,3013.1,3012.0,1.35676191]
[1769583910286,1.376475,3013.1,3012.0,0.00408457]
[1769583911195,1.376475,3013.1,3011.8,1.35267734]